bitfinex/quotes_BTCUSD_20240827
["timestamp","ask_amount","ask_price","bid_price","bid_amount"]
[1724774053642,0.161951,61747.0,61743.0,0.00404224]
[1724774053892,0.161951,61747.0,61740.0,0.002822]
[1724774053893,0.00090421,61750.0,61747.0,0.00404224]
[1724774054588,0.161946,61749.0,61747.0,0.00404224]
[1724774054823,0.161946,61749.0,61742.0,0.00404224]
[1724774055040,0.01,61747.0,61742.0,0.00404224]
[1724774055489,0.161949,61748.0,61742.0,0.00404224]
[1724774055711,0.24301092,61748.0,61742.0,0.00404224]
[1724774056204,0.24301092,61748.0,61744.0,0.00404224]
[1724774056679,0.007,61747.0,61743.0,0.00404224]
[1724774056890,0.007,61747.0,61744.0,0.00404224]
[1724774057135,0.168952,61747.0,61743.0,0.00404224]
[1724774057352,0.168952,61747.0,61745.0,0.00404224]
[1724774057788,0.168952,61747.0,61740.0,0.000822]
[1724774057789,0.168952,61747.0,61743.0,0.00404224]
[1724774058001,0.168952,61747.0,61746.0,0.00404224]
[1724774058002,0.161952,61747.0,61746.0,0.00404224]
[1724774058224,0.04494535,61747.0,61744.0,0.00404224]
[1724774058448,0.04494535,61747.0,61740.0,0.000822]
[1724774058449,0.006,61747.0,61746.0,0.00404224]
[1724774059109,0.013,61747.0,61746.0,0.00404224]
[1724774059541,0.006,61747.0,61746.0,0.00404224]
[1724774059762,0.012,61747.0,61746.0,0.00404224]
[1724774060185,0.006,61747.0,61746.0,0.00404224]
[1724774060581,0.012,61747.0,61746.0,0.00404224]
[1724774061190,0.017,61747.0,61746.0,0.00404224]
[1724774065737,0.017,61747.0,61746.0,0.06443646]
[1724774065953,0.017,61747.0,61746.0,0.16599524]
[1724774066185,0.017,61747.0,61746.0,0.48990224]
[1724774066624,0.017,61747.0,61746.0,1.99660148]
[1724774066829,0.006,61747.0,61746.0,2.2128953]
[1724774067050,0.006,61747.0,61746.0,2.21289527]
[1724774067280,0.006,61747.0,61746.0,2.2298199]
[1724774067503,0.006,61747.0,61746.0,2.22981908]
[1724774067901,0.006,61747.0,61746.0,2.22681908]
[1724774068105,0.00090421,61750.0,61749.0,1.133618]
[1724774068240,0.00090421,61750.0,61749.0,1.70007642]
[1724774069850,0.00290421,61750.0,61749.0,1.70907642]
[1724774070285,0.00190421,61750.0,61749.0,1.70407595]
[1724774070623,0.00290421,61750.0,61749.0,1.71007595]
[1724774070933,0.00290421,61750.0,61749.0,1.71411819]
[1724774071341,0.00290421,61750.0,61749.0,0.88887824]
[1724774071563,0.00290421,61750.0,61749.0,0.56498724]
[1724774071772,0.00290421,61750.0,61749.0,0.88887824]
[1724774073697,0.00290421,61750.0,61749.0,1.21276924]
[1724774076241,0.00290421,61750.0,61749.0,0.88887824]
[1724774077288,0.00290421,61750.0,61749.0,0.40304224]
[1724774077466,0.00290421,61750.0,61749.0,0.01404224]
[1724774077903,0.00290421,61750.0,61749.0,0.17598724]
[1724774078680,0.00290421,61750.0,61749.0,0.82700782]
[1724774078877,0.00290421,61750.0,61749.0,1.40077327]
[1724774079290,0.00290421,61750.0,61749.0,1.72142569]
[1724774079473,0.00290421,61750.0,61749.0,1.90762569]
[1724774082654,0.00290421,61750.0,61749.0,1.90844769]
[1724774086806,0.00290421,61750.0,61749.0,1.39835669]
[1724774087014,0.00290421,61750.0,61749.0,1.07446569]
[1724774088077,0.00190421,61750.0,61749.0,1.07046569]
[1724774088212,0.00190421,61750.0,61749.0,1.39435669]
[1724774088858,0.00190421,61750.0,61749.0,1.40335669]
[1724774089132,0.00290421,61750.0,61749.0,1.40335669]
[1724774089456,0.00190421,61750.0,61749.0,0.58660924]
[1724774089678,0.00290421,61750.0,61749.0,0.91950024]
[1724774090129,0.00290421,61750.0,61749.0,1.24339124]
[1724774090376,0.00090421,61762.0,61757.0,0.00404224]
[1724774090617,0.00090421,61762.0,61761.0,0.00404224]
[1724774091567,0.00490421,61762.0,61761.0,0.00404224]
[1724774092017,0.00090421,61762.0,61761.0,0.00404224]
[1724774092464,0.00490421,61762.0,61761.0,0.00404224]
[1724774092942,0.1939,61765.0,61761.0,0.00404224]
[1724774092943,0.04880421,61765.0,61761.0,0.00404224]
[1724774093157,0.0559867,61764.0,61760.0,0.00404224]
[1724774093358,0.002,61762.0,61761.0,0.00404224]
[1724774094159,0.3914,61763.0,61761.0,0.00404224]
[1724774094371,0.3914,61763.0,61762.0,0.00404224]
[1724774095912,0.3964,61763.0,61762.0,0.00404224]
[1724774096119,0.41771712,61763.0,61762.0,0.00404224]
[1724774096515,0.3964,61763.0,61762.0,0.00404224]
[1724774096720,0.3994,61763.0,61762.0,0.00404224]
[1724774097389,0.561309,61763.0,61762.0,0.00404224]
[1724774097797,0.561309,61763.0,61760.0,0.00404224]
[1724774098002,0.161917,61760.0,61759.0,0.00404224]
[1724774098209,0.161917,61760.0,61758.0,0.00404224]
[1724774099051,0.161917,61760.0,61759.0,0.00404224]
[1724774099229,0.323823,61762.0,61759.0,0.00404224]
[1724774099492,0.485743,61761.0,61759.0,0.00404224]
[1724774099706,0.09789192,61760.0,61759.0,0.00404224]
[1724774100533,0.26080892,61760.0,61759.0,0.00404224]
[1724774101049,0.09789192,61760.0,61759.0,0.00404224]
[1724774101458,0.09889192,61760.0,61759.0,0.00404224]
[1724774101877,0.25980892,61760.0,61759.0,0.00404224]
[1724774102286,0.10289192,61760.0,61759.0,0.00404224]
[1724774102720,0.42672592,61760.0,61758.0,0.00404224]
[1724774102956,0.26480992,61760.0,61758.0,0.00404224]
[1724774103168,0.31793393,61760.0,61759.0,0.00404224]
[1724774103586,0.26480992,61760.0,61759.0,0.00404224]
[1724774103797,0.27080992,61760.0,61759.0,0.00404224]
[1724774104288,0.26580992,61760.0,61759.0,0.00404224]
[1724774104509,0.5957,61757.0,61751.0,0.00404224]
[1724774104730,0.899729,61750.0,61749.0,0.000822]
[1724774104944,1.405415,61750.0,61749.0,0.000822]
[1724774105635,1.081529,61750.0,61749.0,0.000822]
[1724774105862,1.405415,61750.0,61749.0,0.000822]
[1724774106078,1.52579491,61750.0,61749.0,0.000822]
[1724774106300,1.55117071,61750.0,61749.0,0.000822]
[1724774106527,1.71113616,61750.0,61749.0,0.000822]
[1724774106748,1.59075625,61750.0,61749.0,0.000822]
[1724774106958,1.60175625,61750.0,61749.0,0.001822]
[1724774107408,2.0856077,61750.0,61749.0,0.001822]
[1724774107871,1.30775179,61741.0,61740.0,0.000822]
[1724774108122,1.30775179,61741.0,61719.0,0.00604224]
[1724774108123,0.16202,61721.0,61719.0,0.00604224]
[1724774108355,0.16202,61721.0,61717.0,0.00404224]
[1724774108356,0.162023,61720.0,61717.0,0.00404224]
[1724774108587,0.09618035,61726.0,61711.0,0.0082]
[1724774108588,0.07213526,61728.0,61727.0,0.00404224]
[1724774108805,0.04802376,61736.0,61735.0,0.00404224]
[1724774109031,0.323932,61742.0,61740.0,0.00404224]
[1724774109032,0.04802376,61742.0,61740.0,0.00404224]
[1724774109246,0.04802376,61742.0,61728.0,0.1952]
[1724774109247,0.26140857,61745.0,61744.0,0.00404224]
[1724774109498,0.02538481,61745.0,61744.0,0.00404224]
[1724774109906,0.09166567,61745.0,61744.0,0.00404224]
[1724774110101,0.02538481,61745.0,61744.0,0.00404224]
[1724774111492,0.03338481,61745.0,61744.0,0.00504224]
[1724774112282,0.04038481,61745.0,61744.0,0.00504224]
[1724774116033,0.04038481,61745.0,61744.0,0.39724224]
[1724774116245,0.04038481,61745.0,61744.0,0.59434224]
[1724774116665,0.04038481,61745.0,61744.0,0.39724224]
[1724774116880,0.015,61745.0,61744.0,0.00504224]
[1724774118800,0.015,61745.0,61744.0,0.00586424]
[1724774120351,0.015,61745.0,61744.0,0.16782324]
[1724774120602,0.015,61745.0,61744.0,0.49174124]
[1724774120831,0.015,61745.0,61744.0,0.49498003]
[1724774121247,0.015,61745.0,61744.0,1.39499803]
[1724774121452,0.02537474,61752.0,61751.0,0.48986324]
[1724774121674,0.0292,61756.0,61753.0,0.161934]
[1724774121878,0.0292,61756.0,61755.0,0.56927224]
[1724774122059,0.0292,61756.0,61755.0,0.89313224]
[1724774122719,0.0292,61756.0,61755.0,0.56927224]
[1724774123107,0.0292,61756.0,61755.0,0.57127224]
[1724774123342,0.0292,61756.0,61755.0,0.89513224]
[1724774123556,0.00090421,61762.0,61761.0,0.00404224]
[1724774123557,0.03010421,61762.0,61761.0,0.00404224]
[1724774123802,0.03010421,61762.0,61761.0,1.68679748]
[1724774123803,0.00282226,61762.0,61761.0,1.68679748]
[1724774124006,0.00090421,61765.0,61761.0,1.68679748]
[1724774124007,0.00090421,61765.0,61764.0,0.89306124]
[1724774124212,0.00090421,61765.0,61764.0,1.70065269]
[1724774125307,0.00090421,61765.0,61764.0,1.05302669]
[1724774125528,0.00090421,61765.0,61764.0,0.56924824]
[1724774125746,0.00090421,61765.0,61764.0,0.40734224]
[1724774126182,0.00090421,61765.0,61764.0,0.16594824]
[1724774126421,0.00090421,61765.0,61764.0,0.01304224]
[1724774126422,0.00190421,61765.0,61764.0,0.01304224]
[1724774126645,0.00190421,61765.0,61764.0,0.012]
[1724774126646,0.16380721,61765.0,61764.0,0.012]
[1724774126864,1.37138666,61765.0,61764.0,0.012]
[1724774127112,1.69519366,61765.0,61764.0,0.009]
[1724774127325,0.16193,61755.0,61753.0,0.00404224]
[1724774127545,0.161932,61754.0,61753.0,0.00404224]
[1724774127755,0.323842,61759.0,61753.0,0.00404224]
[1724774128185,0.323851,61757.0,61753.0,0.00404224]
[1724774128626,0.16193,61755.0,61753.0,0.00404224]
[1724774129357,0.161926,61757.0,61753.0,0.00504224]
[1724774129574,0.323844,61758.0,61753.0,0.00404224]
[1724774129781,0.19836333,61757.0,61753.0,0.00404224]
[1724774129987,0.002,61755.0,61753.0,0.00404224]
[1724774130196,0.161928,61756.0,61753.0,0.00404224]
[1724774130408,0.16193,61755.0,61753.0,0.00504224]
[1724774130630,0.575632,61754.0,61753.0,0.00504224]
[1724774130852,0.4137,61754.0,61753.0,0.00404224]
[1724774131301,0.4137,61754.0,61753.0,0.00504224]
[1724774131782,0.4137,61754.0,61753.0,0.00404224]
[1724774132016,0.4167,61754.0,61753.0,0.00404224]
[1724774132470,0.003,61754.0,61753.0,0.00404224]
[1724774132950,0.005,61754.0,61753.0,0.00404224]
[1724774134495,0.002,61754.0,61753.0,0.00404224]
[1724774134812,0.005,61754.0,61753.0,0.00404224]
[1724774134915,0.003,61754.0,61753.0,0.00404224]
[1724774135146,0.161925,61757.0,61753.0,0.00404224]
[1724774135407,0.323845,61758.0,61753.0,0.00404224]
[1724774135408,0.163932,61754.0,61753.0,0.00404224]
[1724774135892,0.002,61754.0,61753.0,0.00404224]
[1724774136136,0.12712182,61756.0,61753.0,0.00404224]
[1724774136382,0.005,61757.0,61755.0,0.00404224]
[1724774136624,0.04797769,61760.0,61757.0,0.00404224]
[1724774136862,0.04797769,61760.0,61759.0,0.00404224]
[1724774136863,0.161917,61760.0,61759.0,0.00404224]
[1724774137110,0.161917,61760.0,61749.0,0.161944]
[1724774137111,0.04797769,61761.0,61760.0,0.00404224]
[1724774137350,0.04797769,61761.0,61750.0,0.00323853]
[1724774137351,0.02537202,61762.0,61761.0,0.00404224]
[1724774138993,0.18870421,61765.0,61754.0,0.323865]
[1724774138994,0.00090421,61765.0,61764.0,0.00404224]
[1724774139754,0.00090421,61765.0,61764.0,0.38594224]
[1724774139997,0.00090421,61765.0,61764.0,0.87166124]
[1724774140930,0.00890421,61765.0,61764.0,0.38694224]
[1724774141420,0.00790421,61765.0,61764.0,0.38694224]
[1724774141664,0.00090421,61765.0,61764.0,0.38594224]
[1724774142151,0.00190421,61765.0,61764.0,0.39194224]
[1724774142430,0.00190421,61765.0,61764.0,0.00404224]
[1724774142431,0.00090421,61765.0,61764.0,0.00404224]
[1724774142867,0.00090421,61765.0,61764.0,0.00804224]
[1724774143341,0.00190421,61765.0,61764.0,0.00404224]
[1724774143574,0.0791622,61765.0,61764.0,0.00404224]
[1724774143805,0.00190421,61765.0,61764.0,0.00404224]
[1724774144047,0.00390421,61765.0,61764.0,0.00404224]
[1724774144533,0.00190421,61765.0,61764.0,0.00404224]
[1724774144759,0.16380921,61765.0,61763.0,0.00404224]
[1724774145006,0.16380921,61765.0,61764.0,0.00404224]
[1724774145007,0.00190421,61765.0,61764.0,0.00404224]
[1724774145481,0.00090421,61765.0,61764.0,0.00404224]
[1724774145717,0.00090421,61765.0,61763.0,0.00404224]
[1724774145718,0.05310036,61765.0,61763.0,0.00404224]
[1724774145938,0.05510036,61765.0,61763.0,0.00404224]
[1724774146192,0.43660036,61765.0,61763.0,0.00404224]
[1724774146448,0.48572,61764.0,61763.0,0.00404224]
[1724774146690,0.62222725,61764.0,61763.0,0.00404224]
[1724774147159,0.81272725,61764.0,61763.0,0.00404224]
[1724774147378,0.323819,61763.0,61761.0,0.00404224]
[1724774147641,0.32700725,61764.0,61761.0,0.00404224]
[1724774147642,0.485735,61762.0,61761.0,0.00404224]
[1724774148106,0.161914,61761.0,61760.0,0.00404224]
[1724774148325,0.48891425,61764.0,61760.0,0.00404224]
[1724774148551,0.16191,61763.0,61760.0,0.00404224]
[1724774148996,0.16191,61763.0,61761.0,0.003]
[1724774149257,0.48891325,61764.0,61761.0,0.003]
[1724774149483,0.32800725,61764.0,61761.0,0.003]
[1724774149715,0.32800725,61764.0,61763.0,0.00404224]
[1724774149716,0.001,61764.0,61763.0,0.00404224]
[1724774149941,0.00090421,61765.0,61764.0,0.00404224]
[1724774152003,0.00090421,61765.0,61764.0,0.88206124]
[1724774152687,0.00190421,61765.0,61764.0,0.88206124]
[1724774152909,0.00190421,61765.0,61764.0,1.20587424]
[1724774153132,0.00390421,61765.0,61764.0,1.20587424]
[1724774153598,0.00190421,61765.0,61764.0,1.20587424]
[1724774153846,0.00190421,61765.0,61764.0,1.20887424]
[1724774154330,0.00090421,61765.0,61764.0,1.20887424]
[1724774155023,0.00190421,61765.0,61764.0,1.21787424]
[1724774155282,0.00090421,61765.0,61764.0,1.20587424]
[1724774155508,0.00190421,61765.0,61764.0,1.22287424]
[1724774155729,0.00290421,61765.0,61764.0,1.22287424]
[1724774156221,0.00190421,61765.0,61764.0,1.21587424]
[1724774156442,0.00290421,61765.0,61764.0,1.22487424]
[1724774157173,0.00290421,61765.0,61764.0,1.54868724]
[1724774157397,0.00290421,61765.0,61764.0,1.22487424]
[1724774157922,0.00290421,61765.0,61764.0,1.70865269]
[1724774162347,0.00290421,61765.0,61764.0,1.80865269]
[1724774164179,0.00290421,61765.0,61764.0,2.31916569]
[1724774164389,0.02536471,61778.0,61777.0,1.71652403]
[1724774164831,0.20983242,61793.0,61777.0,1.71652403]
[1724774164832,0.47989634,61795.0,61794.0,0.00404224]
[1724774165278,0.5875,61797.0,61794.0,0.00404224]
[1724774165504,0.5875,61797.0,61796.0,0.00404224]
[1724774167339,0.00090421,61797.0,61796.0,0.02062956]
[1724774167573,0.00090421,61797.0,61796.0,0.00404224]
[1724774168036,0.00590421,61797.0,61796.0,0.00404224]
[1724774168502,0.16086966,61797.0,61791.0,0.00404224]
[1724774168747,0.3946,61795.0,61785.0,0.00404224]
[1724774168982,0.3946,61795.0,61779.0,0.01395897]
[1724774168983,0.3946,61791.0,61786.0,0.00404224]
[1724774169252,0.55456545,61791.0,61786.0,0.00404224]
[1724774169963,0.55456545,61791.0,61784.0,0.00404224]
[1724774169964,0.71640245,61791.0,61784.0,0.00404224]
[1724774170196,0.71640245,61791.0,61785.0,0.00404224]
[1724774170872,0.71640245,61791.0,61784.0,0.00404224]
[1724774171120,0.55456545,61791.0,61784.0,0.00404224]
[1724774171411,0.55456545,61791.0,61783.0,0.00404224]
[1724774171412,0.1923,61787.0,61783.0,0.00404224]
[1724774171663,0.15996545,61786.0,61775.0,0.00404224]
[1724774171884,0.1923,61775.0,61772.0,0.00404224]
[1724774172126,0.1923,61775.0,61771.0,0.00404224]
[1724774172360,0.1923,61775.0,61763.0,0.323814]
[1724774172361,0.354179,61775.0,61770.0,0.00404224]
[1724774172628,0.354179,61775.0,61767.0,0.00404224]
[1724774172629,0.161881,61774.0,61767.0,0.00404224]
[1724774172870,0.1923,61775.0,61771.0,0.00404224]
[1724774173219,0.2502845,61785.0,61779.0,0.00404224]
[1724774173312,0.4121355,61785.0,61779.0,0.00404224]
[1724774173571,0.32181945,61784.0,61779.0,0.00404224]
[1724774174027,0.1899,61785.0,61779.0,0.00404224]
[1724774174267,0.1899,61785.0,61784.0,0.00404224]
[1724774175731,0.1979,61785.0,61784.0,0.00504224]
[1724774175988,0.2069,61785.0,61784.0,0.00604224]
[1724774176484,0.2069,61785.0,61784.0,0.002]
[1724774177466,0.017,61785.0,61784.0,0.16789624]
[1724774178185,0.017,61785.0,61784.0,0.00504224]
[1724774178186,0.008,61785.0,61784.0,0.00504224]
[1724774178451,0.61280421,61797.0,61795.0,0.00404224]
[1724774178706,0.61280421,61797.0,61796.0,0.00404224]
[1724774178707,0.00090421,61797.0,61796.0,0.00404224]
[1724774181354,0.00390421,61797.0,61796.0,0.00404224]
[1724774182281,0.00590421,61797.0,61796.0,0.00404224]
[1724774190928,0.00590421,61797.0,61791.0,0.01760748]
[1724774191148,0.4082,61796.0,61793.0,0.00404224]
[1724774191633,0.00590421,61797.0,61793.0,0.00404224]
[1724774191872,0.04285462,61796.0,61793.0,0.00404224]
[1724774192105,0.00090421,61797.0,61793.0,0.00404224]
[1724774192330,0.001,61796.0,61793.0,0.00404224]
[1724774192818,0.00390421,61797.0,61793.0,0.00404224]
[1724774193566,0.02926014,61797.0,61793.0,0.00404224]
[1724774193802,0.02626014,61797.0,61793.0,0.00404224]
[1724774194040,0.002,61796.0,61793.0,0.00404224]
[1724774194537,0.02626014,61797.0,61793.0,0.00404224]
[1724774194789,0.03126014,61797.0,61793.0,0.00404224]
[1724774195052,0.02926014,61797.0,61793.0,0.00404224]
[1724774195288,0.001,61796.0,61793.0,0.00404224]
[1724774195530,0.02626014,61797.0,61793.0,0.00404224]
[1724774195752,0.002,61796.0,61793.0,0.00404224]
[1724774195993,0.002,61796.0,61795.0,0.00404224]
[1724774196953,0.02826014,61797.0,61789.0,0.323678]
[1724774196954,0.02826014,61797.0,61796.0,0.00404224]
[1724774197411,0.03126014,61797.0,61796.0,0.00404224]
[1724774197650,0.02926014,61797.0,61796.0,0.00404224]
[1724774197877,0.02626014,61797.0,61796.0,0.00404224]
[1724774198118,0.02926014,61797.0,61796.0,0.00404224]
[1724774198550,0.03126014,61797.0,61796.0,0.00404224]
[1724774201275,0.03126014,61797.0,61796.0,0.49274571]
[1724774201495,0.03126014,61797.0,61796.0,0.81315424]
[1724774201789,0.00590421,61797.0,61796.0,0.16586424]
[1724774201994,0.00590421,61797.0,61796.0,0.00404224]
[1724774202259,0.00590421,61797.0,61794.0,0.00404224]
[1724774202507,0.00390421,61797.0,61794.0,0.00404224]
[1724774202724,0.00390421,61797.0,61796.0,0.00504224]
[1724774203165,0.00090421,61797.0,61796.0,0.00504224]
[1724774203996,0.00090421,61797.0,61796.0,0.00404224]
[1724774204200,0.00090421,61797.0,61796.0,0.00804224]
[1724774204418,0.00090421,61797.0,61796.0,0.00504224]
[1724774204841,0.00090421,61797.0,61796.0,0.00804224]
[1724774205045,0.00090421,61797.0,61796.0,0.00704224]
[1724774206299,0.00090421,61797.0,61796.0,0.00804224]
[1724774206946,0.00090421,61797.0,61796.0,0.00704224]
[1724774207147,0.00490421,61797.0,61796.0,0.00404224]
[1724774207365,0.00790421,61797.0,61796.0,0.00404224]
[1724774207568,0.00390421,61797.0,61796.0,0.00404224]
[1724774207776,0.00090421,61797.0,61796.0,0.00404224]
[1724774207988,0.00790421,61797.0,61796.0,0.00404224]
[1724774208904,0.00790421,61797.0,61788.0,0.00404224]
[1724774208905,0.1888,61794.0,61788.0,0.00404224]
[1724774209165,0.1888,61794.0,61783.0,0.01458169]
[1724774209166,0.07222393,61790.0,61783.0,0.000821]
[1724774209385,0.161854,61784.0,61783.0,0.000821]
[1724774209627,0.21000068,61784.0,61783.0,0.000821]
[1724774209877,0.21000068,61784.0,61783.0,0.00486324]
[1724774210099,0.04814668,61784.0,61783.0,0.00486324]
[1724774210546,0.07222003,61786.0,61783.0,0.00486324]
[1724774210547,0.04814668,61785.0,61783.0,0.00486324]
[1724774211224,0.013,61784.0,61783.0,0.00686324]
[1724774211469,0.013,61784.0,61783.0,0.002821]
[1724774211709,0.013,61784.0,61783.0,0.00686324]
[1724774211961,0.006,61784.0,61783.0,0.00586324]
[1724774212226,0.169852,61785.0,61783.0,0.00586324]
[1724774212474,0.008,61785.0,61783.0,0.00586324]
[1724774213175,0.161854,61784.0,61783.0,0.00586324]
[1724774213414,0.161854,61784.0,61783.0,0.001821]
[1724774213656,1.27733099,61784.0,61783.0,0.002821]
[1724774213884,1.96770444,61784.0,61783.0,0.002821]
[1724774214127,1.96770444,61784.0,61783.0,0.000821]
[1724774214375,1.96770444,61784.0,61783.0,0.002821]
[1724774214376,2.44279144,61784.0,61783.0,0.002821]
[1724774214630,2.6230782,61784.0,61783.0,0.002821]
[1724774214885,2.6160782,61784.0,61783.0,0.000821]
[1724774215105,2.2923702,61784.0,61783.0,0.001821]
[1724774215327,2.3073702,61784.0,61783.0,0.002821]
[1724774215792,2.4073702,61784.0,61783.0,0.002821]
[1724774216238,2.71728999,61784.0,61783.0,0.002821]
[1724774216483,2.71028999,61784.0,61783.0,0.001821]
[1724774216722,3.03399799,61784.0,61783.0,0.001821]
[1724774216987,3.03399799,61784.0,61783.0,0.000821]
[1724774216988,3.18839239,61784.0,61783.0,0.000821]
[1724774217221,3.19839239,61784.0,61783.0,0.001821]
[1724774217497,3.03599799,61784.0,61783.0,0.001821]
[1724774218236,3.04599799,61784.0,61783.0,0.002821]
[1724774218465,3.35591778,61784.0,61783.0,0.001]
[1724774218707,0.161909,61763.0,61762.0,0.000822]
[1724774218923,1.42951189,61763.0,61762.0,0.000822]
[1724774219135,1.78171072,61763.0,61762.0,0.000822]
[1724774219608,1.8776291,61763.0,61762.0,0.000822]
[1724774220011,1.78171072,61763.0,61762.0,0.000822]
[1724774220218,1.90160616,61763.0,61762.0,0.000822]
[1724774220451,1.78171072,61763.0,61762.0,0.000822]
[1724774220671,1.90160098,61763.0,61762.0,0.000822]
[1724774220881,1.91560098,61763.0,61762.0,0.001822]
[1724774221088,1.79571072,61763.0,61762.0,0.001822]
[1724774221541,2.29876005,61763.0,61762.0,0.001822]
[1724774221749,2.32273038,61763.0,61762.0,0.001822]
[1724774221954,2.30873038,61763.0,61762.0,0.000822]
[1724774222167,2.30968814,61763.0,61762.0,0.000822]
[1724774222388,2.47875512,61763.0,61762.0,0.000822]
[1724774222630,2.70678648,61763.0,61762.0,0.000822]
[1724774222840,2.69278648,61763.0,61762.0,0.000822]
[1724774223067,2.70678648,61763.0,61762.0,0.000822]
[1724774223318,2.03954976,61754.0,61753.0,0.000822]
[1724774223536,2.03954976,61754.0,61744.0,0.000822]
[1724774223537,2.02576955,61745.0,61744.0,0.000822]
[1724774223752,3.0671577,61745.0,61744.0,0.000822]
[1724774223976,3.23944217,61745.0,61744.0,0.000822]
[1724774224184,3.4677399,61745.0,61744.0,0.000822]
[1724774224402,0.810082,61722.0,61718.0,0.002]
[1724774224691,0.810082,61722.0,61720.0,0.002]
[1724774224692,1.31708045,61722.0,61720.0,0.002]
[1724774224933,0.99304745,61722.0,61721.0,0.002822]
[1724774225176,0.98904745,61722.0,61721.0,0.002822]
[1724774225367,1.14518479,61722.0,61721.0,0.002822]
[1724774226013,0.83015179,61722.0,61721.0,0.002822]
[1724774226240,0.82115179,61722.0,61721.0,0.002822]
[1724774226481,0.323988,61731.0,61724.0,0.3908]
[1724774226716,0.15996545,61730.0,61726.0,0.00404224]
[1724774226957,0.4726,61733.0,61732.0,0.39274224]
[1724774227272,0.4858,61745.0,61732.0,0.39274224]
[1724774227273,0.161962,61743.0,61732.0,0.57954224]
[1724774227493,0.15996545,61742.0,61738.0,0.00098216]
[1724774227705,0.02357083,61744.0,61732.0,0.5755]
[1724774227706,0.02357083,61744.0,61743.0,0.3887]
[1724774227920,0.4858,61745.0,61743.0,0.3887]
[1724774228149,0.4858,61745.0,61744.0,0.18278216]
[1724774228569,0.58164,61745.0,61744.0,0.18278216]
[1724774228784,0.4858,61745.0,61744.0,0.18278216]
[1724774229606,0.4878,61745.0,61744.0,0.18278216]
[1724774230261,0.4898,61745.0,61744.0,0.18278216]
[1724774231121,0.651756,61745.0,61744.0,0.00098216]
[1724774231439,0.81172145,61745.0,61744.0,0.00098216]
[1724774232259,0.4898,61745.0,61744.0,0.00098216]
[1724774232484,0.4878,61745.0,61744.0,0.00098216]
[1724774232892,0.4898,61745.0,61744.0,0.00098216]
[1724774233311,0.4878,61745.0,61744.0,0.00098216]
[1724774233522,0.4898,61745.0,61744.0,0.00098216]
[1724774233727,0.649756,61745.0,61744.0,0.00098216]
[1724774234144,0.4948,61745.0,61744.0,0.00098216]
[1724774234346,0.4968,61745.0,61744.0,0.00098216]
[1724774235017,0.4948,61745.0,61744.0,1.40767716]
[1724774235228,0.4858,61745.0,61744.0,1.40767716]
[1724774235439,0.4858,61745.0,61744.0,1.08375916]
[1724774235689,0.45553984,61745.0,61744.0,1.08375916]
[1724774235891,0.45353984,61745.0,61744.0,1.40767716]
[1724774236109,0.16191,61763.0,61749.0,0.4076]
[1724774236327,0.47989634,61764.0,61763.0,0.00098216]
[1724774236559,0.47989634,61764.0,61762.0,0.4076]
[1724774236560,0.161909,61763.0,61762.0,0.4076]
[1724774236771,0.485727,61763.0,61762.0,0.4076]
[1724774236991,0.161915,61761.0,61760.0,0.00098216]
[1724774237206,0.323777,61771.0,61764.0,0.00098216]
[1724774237459,0.15996545,61771.0,61767.0,0.00098216]
[1724774237673,0.323782,61770.0,61767.0,0.00098216]
[1724774238098,0.15996545,61771.0,61767.0,0.00098216]
[1724774238306,0.161892,61770.0,61767.0,0.00098216]
[1724774238517,0.161893,61769.0,61767.0,0.00098216]
[1724774238747,0.023,61768.0,61767.0,0.00098216]
[1724774239180,0.25175945,61768.0,61767.0,0.00098216]
[1724774239391,0.57555145,61768.0,61767.0,0.00098216]
[1724774239609,0.08986345,61768.0,61767.0,0.00098216]
[1724774240528,0.032,61768.0,61767.0,0.00098216]
[1724774240738,0.039,61768.0,61767.0,0.40668216]
[1724774241173,0.032,61768.0,61767.0,0.40668216]
[1724774241663,0.037,61768.0,61767.0,0.40668216]
[1724774242492,0.028,61768.0,61767.0,0.40668216]
[1724774242857,0.034,61768.0,61767.0,0.40668216]
[1724774243271,0.034,61768.0,61767.0,1.07897716]
[1724774243272,0.011,61768.0,61767.0,1.07897716]
[1724774243467,0.011,61768.0,61767.0,0.59328216]
[1724774243741,0.011,61768.0,61767.0,0.75518016]
[1724774243901,0.011,61768.0,61767.0,1.07897716]
[1724774244102,0.005,61768.0,61767.0,1.07897716]
[1724774244310,0.796324,61781.0,61767.0,0.91707916]
[1724774244311,0.634462,61781.0,61767.0,0.91707916]
[1724774244515,0.79442845,61781.0,61769.0,0.485675]
[1724774244732,0.184865,61780.0,61769.0,0.16189]
[1724774245506,0.023,61780.0,61777.0,0.00098216]
[1724774246110,0.184864,61780.0,61777.0,0.00098216]
[1724774246308,0.33144056,61780.0,61777.0,0.00098216]
[1724774246608,0.33144056,61780.0,61771.0,0.4085]
[1724774246609,0.161875,61776.0,61772.0,0.00098216]
[1724774246818,0.023,61775.0,61772.0,0.00098216]
[1724774247230,0.161881,61774.0,61772.0,0.00098216]
[1724774247405,0.023,61773.0,61772.0,0.00098216]
[1724774247834,0.023,61774.0,61772.0,0.00098216]
[1724774248404,0.003,61775.0,61774.0,0.00098216]
[1724774249051,0.003,61775.0,61774.0,0.39228216]
[1724774249248,0.007,61775.0,61774.0,0.39228216]
[1724774249623,0.003,61775.0,61774.0,0.39228216]
[1724774249832,0.009,61775.0,61774.0,0.39228216]
[1724774250057,0.006,61775.0,61774.0,0.39228216]
[1724774250521,0.01,61775.0,61770.0,0.00098216]
[1724774250720,0.18296545,61774.0,61770.0,0.00098216]
[1724774250929,0.161888,61771.0,61764.0,0.3913]
[1724774251103,0.161888,61771.0,61770.0,0.00098216]
[1724774251276,0.184888,61771.0,61770.0,0.00098216]
[1724774251479,0.023,61771.0,61770.0,0.00098216]
[1724774251642,0.184886,61772.0,61770.0,0.00098216]
[1724774251851,0.161888,61771.0,61770.0,0.00098216]
[1724774252232,0.023,61771.0,61770.0,0.00098216]
[1724774252787,0.023,61773.0,61770.0,0.00098216]
[1724774253194,0.184883,61773.0,61770.0,0.00098216]
[1724774253399,0.002,61771.0,61770.0,0.00098216]
[1724774254571,0.002,61771.0,61770.0,0.73907216]
[1724774254989,0.002,61771.0,61770.0,1.06285316]
[1724774255394,0.004,61771.0,61770.0,1.06285316]
[1724774255671,0.002,61771.0,61770.0,1.06285316]
[1724774255880,0.004,61771.0,61770.0,1.06285316]
[1724774256108,0.004,61771.0,61770.0,1.38663416]